bitfinex/quotes_SOLUSD_20240620
["timestamp","ask_amount","ask_price","bid_price","bid_amount"]
[1718849715705,7.4349,134.5,134.42,45.0]
[1718849715888,7.4355,134.49,134.42,45.0]
[1718849716502,15.5029,134.47,134.35,29.801637]
[1718849716696,7.6078,134.45,134.35,29.801637]
[1718849717007,0.17,134.42,134.34,6.2487]
[1718849717518,12.6072,134.44,134.34,6.2487]
[1718849717519,0.17,134.43,134.34,6.2487]
[1718849717889,0.17,134.43,134.39,7.4406]
[1718849718085,22.8869,134.42,134.36,7.4422]
[1718849718321,22.8869,134.42,134.34,7.4435]
[1718849718322,7.6105,134.4,134.34,7.4435]
[1718849718615,0.17,134.37,134.27,22.34]
[1718849718819,7.6122,134.37,134.26,43.9562]
[1718849719114,0.17,134.35,134.32,7.4448]
[1718849719410,16.3743,134.35,134.32,7.4448]
[1718849719709,0.51,134.34,134.3,7.4458]
[1718849720014,0.51,134.34,134.26,28.518]
[1718849720509,0.51,134.34,134.31,7.4449]
[1718849720699,0.51,134.34,134.32,7.4448]
[1718849721503,0.51,134.34,134.31,7.4452]
[1718849722087,0.51,134.34,134.3,7.4455]
[1718849722292,0.51,134.34,134.26,6.5399]
[1718849722608,0.51,134.34,134.31,7.4454]
[1718849722810,0.17,134.33,134.27,45.0]
[1718849723305,0.17,134.33,134.3,7.4459]
[1718849723693,0.17,134.33,134.31,7.4454]
[1718849724297,0.17,134.33,134.3,7.4459]
[1718849726302,0.51,134.34,134.26,6.5399]
[1718849726303,0.51,134.34,134.26,28.8799]
[1718849726501,0.34,134.34,134.33,7.4443]
[1718849726894,20.8523,134.38,134.29,22.34]
[1718849727102,276.7523,134.41,134.36,7.4421]
[1718849727305,276.7523,134.41,134.3,65.0]
[1718849727306,20.8523,134.41,134.29,15.901]
[1718849727497,20.8523,134.41,134.3,65.0]
[1718849727895,7.4411,134.39,134.3,65.0]
[1718849728108,7.4406,134.4,134.34,7.4437]
[1718849728497,0.34,134.39,134.34,7.4437]
[1718849728701,0.68,134.39,134.34,7.4437]
[1718849729214,0.17,134.36,134.3,45.0]
[1718849729412,0.51,134.36,134.31,7.4451]
[1718849729605,0.17,134.35,134.31,7.4451]
[1718849729804,0.17,134.35,134.32,7.4448]
[1718849730013,0.17,134.34,134.3,7.4454]
[1718849730322,0.34,134.34,134.31,7.4452]
[1718849730502,0.34,134.33,134.31,7.4452]
[1718849731205,0.34,134.33,134.26,22.8106]
[1718849731407,16.6928,134.33,134.29,7.4465]
[1718849731592,16.6928,134.33,134.22,22.6531]
[1718849731593,15.9362,134.37,134.23,22.38]
[1718849731799,15.9362,134.37,134.24,42.34]
[1718849732004,15.9362,134.37,134.24,20.0]
[1718849732198,7.4433,134.35,134.3,7.4459]
[1718849732408,7.4428,134.36,134.3,7.4459]
[1718849732611,7.4432,134.35,134.3,7.4459]
[1718849732916,0.17,134.34,134.24,20.0]
[1718849733103,7.6144,134.33,134.27,7.4473]
[1718849733303,0.17,134.34,134.22,22.6531]
[1718849733304,0.17,134.31,134.22,22.6531]
[1718849733503,0.34,134.31,134.27,7.4474]
[1718849733693,0.17,134.3,134.27,7.4476]
[1718849733899,0.34,134.3,134.27,7.4476]
[1718849734316,0.34,134.3,134.28,7.4471]
[1718849734598,0.34,134.3,134.27,7.4474]
[1718849734902,0.34,134.29,134.27,7.4474]
[1718849735204,22.34,134.35,134.22,22.6531]
[1718849735520,7.4447,134.33,134.27,7.4472]
[1718849735704,0.68,134.32,134.27,7.4472]
[1718849736203,8.1251,134.32,134.26,7.448]
[1718849736405,0.68,134.32,134.27,7.4475]
[1718849736600,0.68,134.32,134.28,7.447]
[1718849736801,0.68,134.32,134.27,7.4474]
[1718849737402,0.17,134.3,134.26,7.4479]
[1718849737618,0.68,134.3,134.27,7.4473]
[1718849738301,0.68,134.3,134.26,7.448]
[1718849738696,0.68,134.3,134.21,22.34]
[1718849738902,0.68,134.3,134.19,16.6023]
[1718849739317,145.68,134.3,134.17,21.6232]
[1718849739629,145.68,134.3,134.15,22.34]
[1718849739630,0.17,134.26,134.15,22.34]
[1718849739924,7.6195,134.24,134.14,21.6232]
[1718849740224,0.17,134.22,134.14,21.6232]
[1718849740416,0.17,134.22,134.2,7.4514]
[1718849740718,0.17,134.22,134.2,7.4511]
[1718849740920,0.51,134.23,134.21,7.451]
[1718849741125,0.17,134.23,134.22,7.4504]
[1718849741313,4.6587,134.27,134.22,7.4504]
[1718849741314,0.17,134.26,134.22,7.45]
[1718849741512,0.68,134.26,134.15,44.72]
[1718849741703,0.68,134.26,134.16,42.38]
[1718849742127,0.68,134.26,134.23,7.4496]
[1718849742725,0.68,134.26,134.24,7.4493]
[1718849742906,0.68,134.26,134.23,7.4495]
[1718849743101,15.9922,134.29,134.18,44.72]
[1718849743320,15.9922,134.29,134.26,7.448]
[1718849743521,15.9922,134.29,134.27,7.4473]
[1718849743701,255.9,134.33,134.29,7.4464]
[1718849743702,15.3578,134.32,134.29,7.4464]
[1718849743897,15.3578,134.32,134.21,43.9846]
[1718849744111,15.3578,134.32,134.22,65.0]
[1718849744830,7.4454,134.31,134.26,7.4481]
[1718849745012,7.4454,134.31,134.25,7.4485]
[1718849745326,0.17,134.31,134.18,44.306]
[1718849745521,0.17,134.3,134.2,0.17]
[1718849745827,0.34,134.31,134.2,0.17]
[1718849746004,0.34,134.31,134.21,44.72]
[1718849746203,0.34,134.31,134.29,7.4462]
[1718849746403,0.34,134.31,134.28,7.447]
[1718849746810,0.34,134.31,134.22,45.0]
[1718849747010,0.34,134.31,134.27,7.4476]
[1718849747227,0.34,134.31,134.26,7.448]
[1718849747529,0.34,134.3,134.27,7.4476]
[1718849747728,0.17,134.29,134.28,7.4471]
[1718849747932,15.3578,134.32,134.3,7.4456]
[1718849749003,15.3578,134.32,134.29,7.4463]
[1718849749225,15.3578,134.32,134.25,6.6075]
[1718849749400,15.3578,134.32,134.29,7.4464]
[1718849750107,0.34,134.31,134.29,7.4464]
[1718849750527,0.34,134.31,134.28,7.4469]
[1718849750928,0.17,134.3,134.27,7.4475]
[1718849751164,0.34,134.3,134.22,6.5753]
[1718849751426,0.34,134.29,134.27,7.4476]
[1718849751633,0.34,134.29,134.23,20.0]
[1718849751811,0.34,134.29,134.25,7.4484]
[1718849751812,0.17,134.28,134.25,7.4484]
[1718849752406,0.34,134.28,134.23,7.4495]
[1718849752602,0.34,134.28,134.19,22.34]
[1718849752603,0.34,134.27,134.24,7.4489]
[1718849752934,0.17,134.26,134.24,7.4489]
[1718849753236,0.17,134.26,134.18,6.4885]
[1718849753237,15.901,134.26,134.18,6.4885]
[1718849753524,0.34,134.25,134.22,7.4504]
[1718849753732,0.34,134.25,134.23,7.4497]
[1718849754305,0.17,134.24,134.22,7.4502]
[1718849754521,0.34,134.24,134.22,7.4502]
[1718849754709,0.17,134.23,134.22,7.4502]
[1718849755120,0.17,134.25,134.18,6.4885]
[1718849755314,0.17,134.25,134.23,7.4497]
[1718849755826,15.561,134.26,134.24,7.4493]
[1718849756037,12.1049,134.3,134.18,6.4885]
[1718849756038,20.8968,134.3,134.18,6.4885]
[1718849756239,7.4483,134.26,134.21,7.4507]
[1718849757029,7.4478,134.27,134.21,7.4507]
[1718849757239,0.17,134.24,134.2,7.4514]
[1718849757534,0.68,134.24,134.19,7.4517]
[1718849757709,0.68,134.24,134.19,7.4519]
[1718849760037,0.68,134.24,134.19,7.4521]
[1718849760238,0.68,134.24,134.14,44.8927]
[1718849760454,0.68,134.24,134.2,7.451]
[1718849761526,5.3387,134.24,134.11,6.5645]
[1718849761847,7.6208,134.22,134.17,7.4531]
[1718849762015,0.17,134.2,134.11,6.5645]
[1718849762221,0.17,134.2,134.15,7.4539]
[1718849762424,0.17,134.2,134.16,7.4536]
[1718849762742,0.17,134.2,134.17,7.4532]
[1718849762926,0.51,134.21,134.18,7.4525]
[1718849763121,0.17,134.2,134.11,6.5645]
[1718849763340,0.17,134.2,134.16,7.4536]
[1718849763840,0.51,134.21,134.13,7.455]
[1718849763841,0.17,134.18,134.13,7.455]
[1718849764041,0.68,134.18,134.13,7.455]
[1718849764254,0.68,134.18,134.14,7.4544]
[1718849764542,0.68,134.18,134.14,7.4547]
[1718849765417,0.68,134.18,134.13,7.4554]
[1718849765624,0.17,134.16,134.07,6.5345]
[1718849765830,0.68,134.16,134.12,7.4558]
[1718849766343,0.68,134.16,134.1,7.4566]
[1718849766642,16.5367,134.13,134.1,7.457]
[1718849766944,0.51,134.12,134.05,22.34]
[1718849767132,0.51,134.12,134.09,7.4573]
[1718849767329,0.17,134.11,134.09,7.4573]
[1718849768942,4.8287,134.11,134.01,48.85120142]
[1718849769125,0.17,134.09,134.06,7.4589]
[1718849769525,0.17,134.09,134.01,32.31450142]
[1718849769740,0.17,134.09,134.01,16.80500142]
[1718849770039,0.17,134.09,134.06,7.4589]
[1718849770442,0.17,134.09,134.05,7.4597]
[1718849770826,0.17,134.09,134.01,16.80500142]
[1718849771023,16.5367,134.13,134.01,39.22500142]
[1718849771228,16.5367,134.13,134.11,7.456]
[1718849771547,16.5367,134.13,134.03,38.34]
[1718849771744,16.5367,134.13,134.08,7.458]
[1718849771928,16.5367,134.13,134.09,7.4576]
[1718849772350,16.5367,134.13,134.04,45.0]
[1718849772659,7.6265,134.11,134.06,7.4593]
[1718849772825,0.51,134.1,134.06,7.4593]
[1718849773337,0.51,134.1,134.05,7.4598]
[1718849773737,0.51,134.1,134.06,7.4592]
[1718849774038,0.17,134.12,134.01,39.22500142]
[1718849774246,8.1364,134.12,134.06,7.459]
[1718849774432,0.17,134.1,134.06,7.459]
[1718849774746,0.34,134.12,134.02,45.0]
[1718849774943,16.5367,134.13,134.1,7.4571]
[1718849775127,16.5367,134.13,134.03,0.17]
[1718849775331,4.6587,134.16,134.12,7.4559]
[1718849775527,4.6587,134.16,134.05,22.34]
[1718849775736,22.34,134.2,134.05,22.34]
[1718849775737,20.9676,134.2,134.09,0.17]
[1718849775946,20.7932,134.24,134.12,6.4248]
[1718849776161,20.7932,134.24,134.2,7.4515]
[1718849776641,20.7932,134.24,134.19,7.4518]
[1718849776831,28.2427,134.24,134.18,7.4525]
[1718849777423,7.45,134.23,134.17,7.453]
[1718849777825,20.7932,134.24,134.12,22.474]
[1718849778026,20.7932,134.24,134.13,45.0]
[1718849778336,16.1345,134.24,134.22,7.4503]
[1718849778535,12.1064,134.27,134.15,0.17]
[1718849778536,4.6587,134.27,134.15,0.17]
[1718849778730,16.0371,134.29,134.25,7.4486]
[1718849778930,16.0371,134.29,134.24,7.4493]
[1718849779137,7.4477,134.27,134.15,45.17]
[1718849779336,16.0371,134.29,134.22,7.4502]
[1718849779337,7.4472,134.28,134.22,7.4502]
[1718849779743,0.17,134.26,134.22,7.4502]
[1718849779945,0.68,134.27,134.22,7.4502]
[1718849780139,0.68,134.27,134.15,45.0]
[1718849780336,8.1278,134.27,134.15,45.0]
[1718849780643,8.1278,134.27,134.21,7.4508]
[1718849780844,8.1278,134.27,134.14,45.0]
[1718849780845,0.68,134.27,134.22,7.4503]
[1718849781145,16.0371,134.29,134.24,7.4492]
[1718849781348,16.0371,134.29,134.17,22.59]
[1718849781537,15.76,134.34,134.28,7.447]
[1718849781744,23.2041,134.34,134.28,7.447]
[1718849782157,15.76,134.34,134.2,0.17]
[1718849782338,15.76,134.34,134.25,7.4486]
[1718849782339,7.4459,134.31,134.25,7.4486]
[1718849782648,7.4459,134.31,134.2,65.17]
[1718849782649,7.4459,134.31,134.26,7.4481]
[1718849782959,34.3695,134.34,134.26,7.4479]
[1718849782960,7.445,134.32,134.26,7.4479]
[1718849783168,7.445,134.32,134.27,7.4475]
[1718849783462,7.4444,134.33,134.27,7.4475]
[1718849783842,7.7849,134.32,134.27,7.4475]
[1718849784037,7.7849,134.32,134.2,65.17]
[1718849784250,7.6149,134.32,134.27,7.4475]
[1718849784456,0.51,134.31,134.27,7.4475]
[1718849784648,0.34,134.3,134.26,7.448]
[1718849784855,0.17,134.29,134.26,7.448]
[1718849785249,0.34,134.29,134.26,7.448]
[1718849787055,0.34,134.29,134.2,65.0]
[1718849787358,15.76,134.34,134.29,7.4462]
[1718849787752,15.76,134.34,134.3,7.4459]
[1718849788267,21.0772,134.39,134.25,0.17]
[1718849788557,7.4417,134.38,134.32,7.4446]
[1718849789161,7.4417,134.38,134.33,7.4442]
[1718849789456,21.0772,134.39,134.27,22.42]
[1718849789672,21.0772,134.39,134.28,45.0]
[1718849789844,21.0772,134.39,134.29,1.48670113]
[1718849790167,7.4417,134.38,134.28,45.0]
[1718849790338,21.0772,134.39,134.33,7.444]
[1718849790544,7.4416,134.38,134.32,7.4446]
[1718849790838,7.4416,134.38,134.33,7.4442]
[1718849791061,0.68,134.37,134.33,7.4442]
[1718849791359,0.68,134.37,134.32,7.4447]
[1718849792062,0.68,134.37,134.33,7.4443]
[1718849792438,0.68,134.37,134.27,67.42]
[1718849792638,0.51,134.37,134.35,7.4431]
[1718849792859,4.6587,134.42,134.38,7.4411]
[1718849793062,15.9786,134.43,134.31,0.17]
[1718849793258,15.9786,134.43,134.4,7.4404]
[1718849793748,15.9786,134.43,134.33,15.3875]
[1718849793749,260.5587,134.46,134.34,0.17]
[1718849793948,4.6587,134.46,134.34,65.17]
[1718849794160,15.9786,134.48,134.37,6.3713]
[1718849794465,15.9786,134.48,134.38,45.0]
[1718849794662,7.4386,134.44,134.39,7.4407]
[1718849794961,34.57,134.48,134.37,6.3713]
[1718849795261,7.4379,134.45,134.4,7.4403]
[1718849796066,0.51,134.44,134.4,7.4403]
[1718849796266,0.34,134.43,134.4,7.4403]
[1718849796471,0.17,134.42,134.4,7.4403]
[1718849797976,0.17,134.42,134.38,45.0]
[1718849797977,0.51,134.42,134.38,7.4413]
[1718849798270,0.34,134.41,134.38,7.4413]
[1718849798473,0.17,134.4,134.38,7.4413]
[1718849798642,23.4148,134.48,134.35,0.17]
[1718849798846,7.4369,134.47,134.41,7.4396]
[1718849799047,15.9786,134.48,134.41,7.4396]
[1718849799264,15.9786,134.48,134.35,45.0]
[1718849799445,7.4382,134.44,134.39,7.4406]
[1718849800066,0.51,134.43,134.39,7.4406]
[1718849800277,0.17,134.42,134.39,7.4406]
[1718849800951,0.17,134.42,134.38,7.4414]
[1718849802062,0.34,134.43,134.41,7.4396]
[1718849802269,20.0,134.47,134.41,7.4396]
[1718849802567,20.0,134.47,134.42,7.4392]
[1718849802775,23.4148,134.48,134.43,7.4386]
[1718849802945,7.4366,134.47,134.42,7.439]
[1718849803147,23.4148,134.48,134.43,7.4388]
[1718849803345,7.4367,134.47,134.42,7.4391]
[1718849803764,7.4367,134.47,134.35,67.42]
[1718849803765,7.4372,134.46,134.41,7.4396]
[1718849804552,0.68,134.45,134.41,7.4396]
[1718849804764,8.1178,134.45,134.39,7.4406]
[1718849804970,7.4383,134.44,134.39,7.4406]
[1718849805173,0.68,134.43,134.39,7.4406]
[1718849805478,8.1191,134.43,134.38,7.4413]
[1718849805659,0.68,134.43,134.38,7.4413]
[1718849806370,0.51,134.43,134.34,42.42]
[1718849806561,0.17,134.43,134.35,0.17]
[1718849806965,0.17,134.45,134.41,7.4395]
[1718849807158,0.34,134.45,134.41,7.4395]
[1718849807665,7.7782,134.45,134.4,7.4402]
[1718849807871,0.34,134.45,134.41,7.4398]
[1718849808078,0.34,134.45,134.42,7.4393]
[1718849808249,0.34,134.44,134.42,7.4393]
[1718849808666,0.34,134.44,134.41,7.4397]
[1718849808878,0.34,134.44,134.42,7.4393]
[1718849809375,0.34,134.44,134.4,7.4402]
[1718849809589,0.34,134.43,134.4,7.4402]
[1718849809758,0.34,134.42,134.4,7.4402]
[1718849809947,0.17,134.43,134.39,7.4408]
[1718849809948,0.34,134.43,134.39,7.4408]
[1718849810147,0.34,134.42,134.39,7.4408]
[1718849811376,0.17,134.41,134.38,7.4415]
[1718849811560,0.34,134.41,134.38,7.4415]
[1718849811760,0.34,134.4,134.38,7.4415]
[1718849813272,0.34,134.4,134.37,7.4419]
[1718849813474,0.17,134.39,134.38,7.4415]
[1718849813685,0.34,134.4,134.38,7.4415]
[1718849815288,0.34,134.4,134.33,15.3875]
[1718849815571,0.17,134.4,134.38,7.4413]
[1718849816856,15.3079,134.46,134.34,45.0]
[1718849817057,15.3079,134.46,134.34,67.42]
[1718849817263,15.3079,134.46,134.42,7.4392]
[1718849817973,22.745,134.46,134.41,7.4396]
[1718849818756,0.17,134.45,134.41,7.4396]
[1718849818965,8.1177,134.45,134.4,7.4402]
[1718849819162,8.1177,134.45,134.34,67.42]
[1718849819163,7.4382,134.44,134.39,7.4407]
[1718849819351,8.1188,134.43,134.38,7.4413]
[1718849819552,0.34,134.42,134.39,7.441]
[1718849820259,15.3079,134.46,134.34,0.17]
[1718849820459,7.6077,134.45,134.4,7.44]
[1718849820654,0.17,134.45,134.35,22.42]
[1718849820854,0.17,134.45,134.42,7.439]
[1718849821469,15.1014,134.49,134.45,7.4376]
[1718849821876,7.4361,134.48,134.43,7.4386]
[1718849822080,15.1014,134.49,134.39,44.5234]
[1718849822281,263.3344,134.51,134.46,7.4368]
[1718849822464,19.7601,134.53,134.47,7.4364]
[1718849822465,7.4341,134.52,134.47,7.4364]
[1718849823084,27.1934,134.53,134.48,7.4359]
[1718849823376,27.1934,134.53,134.47,7.4363]
[1718849823586,7.4339,134.52,134.47,7.4363]
[1718849824384,7.435,134.5,134.45,7.4373]
[1718849825058,0.68,134.49,134.45,7.4373]
[1718849825483,0.68,134.49,134.46,7.437]
[1718849825653,19.7601,134.53,134.41,0.17]
[1718849825974,7.4344,134.51,134.46,7.437]
[1718849826167,0.68,134.5,134.45,7.4375]
[1718849826958,0.68,134.5,134.46,7.4371]
[1718849827171,0.51,134.5,134.41,0.17]
[1718849827384,0.51,134.5,134.49,7.4354]
[1718849827675,0.51,134.5,134.47,7.4364]
[1718849827870,0.51,134.5,134.4,87.42]
[1718849827871,0.17,134.49,134.4,87.42]
[1718849828058,0.17,134.49,134.46,7.4368]
[1718849829477,0.51,134.5,134.49,7.4354]
[1718849830069,15.9432,134.57,134.53,7.4329]
[1718849830390,15.9432,134.57,134.44,0.17]
[1718849830391,15.9432,134.57,134.48,6.5937]
[1718849830683,15.9432,134.57,134.49,45.0]
[1718849830884,4.6587,134.59,134.55,7.4317]
[1718849831088,4.6587,134.59,134.53,7.4327]
[1718849831263,7.4305,134.58,134.53,7.4327]
[1718849831692,12.0887,134.59,134.54,7.4326]
[1718849832062,15.9432,134.61,134.56,7.4312]
[1718849832274,15.9432,134.61,134.57,7.4305]
[1718849832480,15.9432,134.61,134.57,7.4309]
[1718849832695,15.9432,134.61,134.5,60.3365]
[1718849832862,15.9432,134.61,134.51,65.0]
[1718849833068,23.3724,134.61,134.56,7.4315]
[1718849834176,7.43,134.59,134.54,7.4325]
[1718849834379,15.9432,134.61,134.51,7.4342]
[1718849834595,0.17,134.56,134.51,7.4342]
[1718849834774,0.51,134.56,134.51,7.4342]
[1718849834975,0.17,134.53,134.44,29.5728]
[1718849835164,0.17,134.5,134.46,7.4369]
[1718849835368,7.4355,134.49,134.44,7.4377]
[1718849835596,0.68,134.48,134.44,7.4377]
[1718849835769,0.51,134.48,134.44,7.4377]
[1718849836083,15.8905,134.54,134.5,7.4349]
[1718849836282,0.17,134.53,134.43,15.4764]
[1718849836489,7.4352,134.5,134.45,7.4375]
[1718849836791,8.1156,134.49,134.4,6.2004]
[1718849836969,0.17,134.48,134.4,6.2004]
[1718849837171,0.51,134.48,134.4,6.2004]
[1718849837574,0.17,134.47,134.4,6.2004]
[1718849837793,0.34,134.47,134.43,7.4386]
[1718849838090,0.17,134.51,134.4,28.6204]
[1718849838289,0.17,134.51,134.41,2.980312]
[1718849838290,0.68,134.51,134.41,2.980312]
[1718849838490,0.68,134.51,134.47,7.4364]
[1718849838669,0.68,134.51,134.46,7.4369]
[1718849838876,0.68,134.51,134.45,7.4371]
[1718849839097,0.68,134.51,134.41,45.0]
[1718849839273,7.4358,134.49,134.43,7.4385]
[1718849839477,0.68,134.51,134.43,7.4385]
[1718849839478,0.68,134.48,134.43,7.4385]
[1718849839781,0.68,134.48,134.44,7.438]
[1718849840185,0.68,134.48,134.43,7.4386]
[1718849841089,20.0,134.53,134.4,28.6204]
[1718849841292,20.0,134.53,134.47,7.4363]
[1718849841498,20.0,134.53,134.45,7.4373]
[1718849841795,15.8905,134.54,134.41,87.42]
[1718849841999,15.8905,134.54,134.5,7.4348]
[1718849842578,15.8905,134.54,134.48,7.4356]
[1718849843193,7.4333,134.53,134.48,7.4356]
[1718849843400,0.68,134.52,134.48,7.4356]
[1718849844091,0.68,134.52,134.49,7.4353]
[1718849844495,0.17,134.51,134.41,87.42]
[1718849845103,0.17,134.51,134.49,7.4354]
[1718849845396,0.17,134.51,134.47,7.4361]
[1718849845786,0.17,134.51,134.45,7.4373]
[1718849845984,0.17,134.49,134.45,7.4373]
[1718849846187,0.68,134.49,134.45,7.4373]
[1718849847209,0.68,134.49,134.44,7.438]
[1718849847499,0.68,134.49,134.38,15.4764]
[1718849847500,0.17,134.47,134.38,15.4764]
[1718849847873,0.17,134.47,134.37,6.6146]
[1718849847874,0.34,134.47,134.37,6.6146]
[1718849848075,0.17,134.45,134.41,7.4395]
[1718849848302,0.34,134.45,134.37,6.6146]
[1718849848506,0.17,134.44,134.38,20.0]
[1718849848683,0.51,134.44,134.37,6.6146]
[1718849849081,15.6912,134.47,134.37,6.6146]
[1718849849301,0.68,134.46,134.44,7.438]
[1718849849682,0.17,134.45,134.43,7.4385]
[1718849849907,0.51,134.46,134.37,6.6146]
[1718849850104,0.51,134.46,134.45,7.4377]
[1718849850402,20.3141,134.51,134.47,7.4364]
[1718849850581,20.3141,134.51,134.49,7.4351]
[1718849850781,15.6554,134.51,134.49,7.4351]
[1718849851001,4.6587,134.54,134.5,7.4348]
[1718849851213,4.6587,134.54,134.49,7.4352]
[1718849851214,12.0915,134.54,134.49,7.4352]
[1718849851506,4.6587,134.54,134.5,7.4347]
[1718849851878,4.6587,134.54,134.51,7.4343]
[1718849852098,4.6587,134.54,134.45,6.6384]
[1718849852099,15.6554,134.55,134.45,6.6384]
[1718849852402,255.9,134.56,134.52,7.4336]
[1718849852781,12.0901,134.57,134.52,7.4336]
[1718849853000,12.0901,134.57,134.51,7.4341]
[1718849853191,7.4336,134.53,134.46,45.0]
[1718849853383,7.4328,134.54,134.49,7.4354]
[1718849853582,7.4328,134.54,134.46,45.0]
[1718849853583,7.4334,134.53,134.48,7.4358]
[1718849854107,4.6587,134.57,134.46,45.0]
[1718849854290,0.68,134.56,134.46,45.0]
[1718849854602,7.4333,134.53,134.48,7.4358]
[1718849854785,0.68,134.52,134.48,7.4358]
[1718849855379,0.68,134.52,134.46,45.0]
[1718849855380,0.68,134.52,134.49,7.4354]
[1718849855582,0.68,134.52,134.5,7.4348]
[1718849856503,0.68,134.52,134.46,45.0]
[1718849856802,0.68,134.52,134.48,7.436]
[1718849856985,0.68,134.52,134.49,7.435]
[1718849857190,0.68,134.52,134.46,45.0]
[1718849857401,0.68,134.52,134.5,7.4345]
[1718849858504,0.68,134.52,134.49,7.4353]
[1718849858693,0.17,134.52,134.46,45.0]
[1718849858903,4.6587,134.57,134.46,45.0]
[1718849859100,0.17,134.56,134.46,45.0]
[1718849859291,0.17,134.56,134.52,7.4336]
[1718849859693,12.0901,134.57,134.52,7.4336]
[1718849860688,4.6587,134.57,134.53,7.433]
[1718849861106,7.4307,134.58,134.53,7.433]
[1718849861306,7.4307,134.58,134.46,67.42]
[1718849861307,7.4311,134.57,134.52,7.4337]
[1718849862219,0.17,134.56,134.52,7.4337]
[1718849862397,0.17,134.56,134.54,7.4325]
[1718849862904,0.17,134.56,134.48,15.2792]
[1718849862905,0.17,134.56,134.53,7.4331]
[1718849863222,0.17,134.57,134.53,7.4331]
[1718849863391,0.17,134.57,134.48,15.2792]
[1718849863591,0.17,134.57,134.53,7.4329]
[1718849863919,0.34,134.57,134.53,7.4329]
[1718849864212,0.34,134.56,134.53,7.4329]
[1718849864511,0.17,134.55,134.53,7.4329]
[1718849864719,0.34,134.55,134.51,7.434]
[1718849864891,0.34,134.54,134.51,7.434]
[1718849866211,0.17,134.53,134.5,7.4347]
[1718849866390,0.34,134.53,134.5,7.4347]
[1718849866595,0.17,134.52,134.5,7.4347]
[1718849867488,0.17,134.52,134.51,7.4343]
[1718849868418,0.17,134.52,134.46,45.0]
[1718849869206,0.17,134.52,134.51,7.4343]
[1718849869395,0.51,134.52,134.5,7.4347]
[1718849869928,0.51,134.52,134.51,7.4343]
[1718849870098,0.17,134.52,134.51,7.4343]
[1718849871016,7.4312,134.57,134.52,7.4338]
[1718849871255,0.68,134.56,134.51,7.434]
[1718849871392,0.51,134.56,134.51,7.434]
[1718849871721,0.17,134.55,134.51,7.434]
[1718849872523,0.34,134.55,134.51,7.4343]
[1718849872697,0.34,134.54,134.51,7.4343]
[1718849872897,0.17,134.53,134.51,7.4343]
[1718849873101,0.17,134.53,134.52,7.4338]